bitfinex/quotes_ETHUSD_20250131
["timestamp","ask_amount","ask_price","bid_price","bid_amount"]
[1738335464920,2.98874,3345.9,3345.3,2.99676]
[1738335465165,4.30419949,3345.9,3345.3,2.99676]
[1738335465918,2.98905,3345.6,3345.3,0.0075]
[1738335466119,2.98887,3345.8,3345.2,0.8117]
[1738335466366,2.98896,3345.7,3345.2,0.8117]
[1738335466518,2.98902,3345.6,3345.3,0.0075]
[1738335466722,0.73307152,3345.6,3345.3,0.0075]
[1738335467424,2.98891,3345.7,3345.3,0.0075]
[1738335467975,2.98876,3345.9,3345.3,0.0075]
[1738335468268,2.98824,3346.5,3346.0,2.99613]
[1738335468422,2.98824,3346.5,3346.0,0.0075]
[1738335468656,3.7867101,3346.5,3346.0,0.0075]
[1738335468883,0.7984701,3346.5,3346.0,2.99609]
[1738335469288,3.7866801,3346.5,3346.0,0.0075]
[1738335472017,3.7708,3347.0,3346.0,0.0075]
[1738335472179,3.0,3347.0,3346.5,0.0075]
[1738335472391,5.98781,3347.0,3346.6,0.7833]
[1738335472713,2.98786,3346.9,3346.6,0.7833]
[1738335472887,2.98793,3346.8,3346.6,0.7833]
[1738335473099,2.98839,3346.3,3345.9,0.7806]
[1738335473746,2.98839,3346.3,3346.0,0.0075]
[1738335474072,2.9882,3346.5,3346.0,0.0075]
[1738335474353,2.98805,3346.7,3346.2,2.98845]
[1738335474515,2.98767,3347.1,3346.3,0.7948]
[1738335474698,0.8000538,3347.0,3346.5,0.0075]
[1738335474895,5.012868,3347.2,3346.5,0.0075]
[1738335474896,4.183468,3347.2,3346.5,0.0075]
[1738335475130,2.98766,3347.1,3346.5,0.0075]
[1738335475428,2.98765,3347.2,3346.5,0.0075]
[1738335475620,2.98774,3347.1,3346.5,0.0075]
[1738335475925,3.585279,3347.1,3346.5,2.99568]
[1738335476136,3.585279,3347.1,3346.5,0.0075]
[1738335476328,2.98776,3347.0,3346.5,0.0075]
[1738335478119,0.597539,3347.1,3346.7,0.0075]
[1738335478601,3.585219,3347.1,3346.7,0.0075]
[1738335478922,3.585219,3347.1,3346.5,2.99569]
[1738335479127,3.3462719,3347.0,3346.5,2.99569]
[1738335479280,0.3585219,3347.0,3346.5,2.99569]
[1738335479483,3.585219,3347.1,3346.5,2.99569]
[1738335480082,0.597539,3347.1,3346.7,2.98801]
[1738335480726,0.597539,3347.1,3346.5,2.99569]
[1738335480727,3.585229,3347.1,3346.5,2.99569]
[1738335480879,3.8603502,3347.0,3346.0,0.7989]
[1738335481226,3.8603502,3347.0,3345.2,2.71918081]
[1738335481227,2.98879,3345.9,3345.3,2.9892]
[1738335481581,2.98893,3345.7,3345.1,2.98938]
[1738335482133,2.9891,3345.5,3345.2,0.0075]
[1738335482328,2.98893,3345.7,3345.2,0.0075]
[1738335482529,3.586699,3345.7,3345.2,0.0075]
[1738335482826,2.989,3345.6,3345.2,0.0075]
[1738335483208,0.597769,3345.7,3345.2,0.0075]
[1738335483416,0.597769,3345.7,3345.3,2.98926]
[1738335483631,2.98883,3345.8,3345.2,0.0075]
[1738335483999,2.98874,3345.9,3345.2,2.99681]
[1738335484205,2.98882,3345.8,3345.2,2.99681]
[1738335484607,3.8151,3346.1,3345.0,0.7989]
[1738335484930,2.98913,3345.5,3345.0,0.7989]
[1738335485137,2.98913,3345.5,3345.1,0.0075]
[1738335486328,2.98892,3345.7,3345.1,2.99689]
[1738335486691,2.98892,3345.7,3345.1,0.0075]
[1738335486892,2.98929,3345.3,3344.7,3.58537061]
[1738335487116,0.33625952,3345.6,3344.7,3.58537061]
[1738335487117,2.98946,3345.1,3344.7,0.59564061]
[1738335487361,2.98946,3345.1,3344.6,0.8025]
[1738335487563,2.98946,3345.1,3344.3,0.8289]
[1738335487834,0.03737266,3345.1,3344.3,0.8214]
[1738335488120,3.29227127,3345.0,3344.4,2.99]
[1738335488326,2.98965,3344.9,3344.3,0.8214]
[1738335488927,3.29227127,3345.0,3344.3,0.8214]
[1738335488928,0.30268127,3345.0,3344.5,2.98993]
[1738335489264,0.298892,3345.6,3345.0,2.98945]
[1738335489431,3.298892,3345.6,3345.0,2.98945]
[1738335489640,6.287892,3345.6,3345.0,2.98945]
[1738335489966,6.287892,3345.6,3344.8,2.98967]
[1738335489967,2.98926,3345.3,3344.6,2.98988]
[1738335490172,0.298926,3345.2,3344.7,2.98975]
[1738335490571,0.298926,3345.2,3344.7,0.0075]
[1738335490773,0.298926,3345.2,3344.8,2.98965]
[1738335491110,0.0075,3346.6,3344.6,2.98985]
[1738335491111,3.58715101,3345.9,3345.3,2.9892]
[1738335491443,2.98883,3345.8,3345.3,2.9892]
[1738335491773,0.59839101,3345.9,3345.4,2.98916]
[1738335492067,2.98826,3346.5,3345.5,0.0075]
[1738335492272,2.9882,3346.5,3345.9,2.98868]
[1738335492451,2.9882,3346.5,3345.8,2.98882]
[1738335492654,3.77782,3346.7,3346.1,0.0075]
[1738335493041,3.0,3346.5,3346.1,0.0075]
[1738335493244,2.98813,3346.6,3346.1,2.99603]
[1738335493425,3.77782,3346.7,3346.1,2.99603]
[1738335493769,0.7898,3346.7,3346.3,2.98835]
[1738335493954,2.98795,3346.8,3346.2,0.7922]
[1738335494122,3.91701623,3346.8,3346.2,0.7922]
[1738335494323,2.98802,3346.7,3346.2,0.7922]
[1738335495050,2.98802,3346.7,3346.0,2.99611]
[1738335495873,2.98802,3346.7,3346.1,2.98854]
[1738335496464,3.64520115,3346.7,3346.1,2.98854]
[1738335497653,0.65718115,3346.7,3346.0,0.0075]
[1738335497830,0.03735676,3346.6,3346.0,0.0075]
[1738335498166,2.98827,3346.5,3346.0,0.0075]
[1738335498565,2.98805,3346.7,3346.1,2.98852]
[1738335499692,2.98805,3346.7,3346.0,2.99613]
[1738335499918,2.98821,3346.5,3346.0,0.0075]
[1738335500051,2.98873,3345.9,3345.3,2.98921]
[1738335500256,2.98873,3345.9,3345.2,0.7954]
[1738335500471,2.98887,3345.8,3345.2,3.78473]
[1738335500896,3.02623533,3345.8,3345.3,0.0075]
[1738335501082,3.7642,3346.3,3345.6,0.0075]
[1738335501284,3.0,3346.1,3345.6,2.99643]
[1738335501467,5.98858,3346.1,3345.6,0.0075]
[1738335501669,0.975287,3346.0,3345.6,0.0075]
[1738335501887,6.76423,3346.3,3345.7,2.98884]
[1738335502373,3.84150835,3346.9,3345.9,0.7913]
[1738335502374,2.98825,3346.5,3345.9,0.7913]
[1738335502579,2.98828,3346.4,3345.9,0.7913]
[1738335502800,2.98828,3346.4,3345.9,3.77999]
[1738335504594,2.98795,3346.8,3346.2,2.98838]
[1738335504904,2.98812,3346.6,3346.1,0.0075]
[1738335505106,0.82001999,3346.7,3345.9,0.7913]
[1738335505309,1.62853835,3346.9,3345.6,2.98892]
[1738335505504,1.62853835,3346.9,3345.8,2.98881]
[1738335505505,2.98837,3346.3,3345.8,2.98881]
[1738335505675,2.98837,3346.3,3345.7,0.0075]
[1738335505861,2.98837,3346.3,3345.7,2.9964]
[1738335506513,2.98837,3346.3,3345.7,0.0075]
[1738335506711,0.597665,3346.2,3345.7,0.0075]
[1738335507209,2.98828,3346.4,3345.7,0.0075]
[1738335507570,2.98851,3346.2,3345.7,0.0075]
[1738335509115,0.7882,3346.3,3345.6,0.0075]
[1738335509279,2.98837,3346.3,3345.8,2.9888]
[1738335509479,2.98828,3346.4,3345.8,2.9888]
[1738335509816,0.976461,3346.4,3345.9,2.98865]
[1738335509963,0.976461,3346.4,3345.8,2.9888]
[1738335510170,2.98834,3346.4,3345.8,5.97754]
[1738335510479,2.98834,3346.4,3345.8,2.98874]
[1738335510797,3.77633,3346.6,3345.8,2.98874]
[1738335510995,2.9882,3346.5,3345.9,2.98866]
[1738335511310,2.98838,3346.3,3345.6,2.99649]
[1738335511470,2.98838,3346.3,3345.7,2.98888]
[1738335512011,0.676453,3346.4,3345.8,2.98882]
[1738335512169,3.664743,3346.4,3345.8,2.98882]
[1738335512607,0.676453,3346.4,3345.8,2.98882]
[1738335512788,0.676453,3346.4,3346.0,2.98864]
[1738335513190,2.98815,3346.6,3346.0,2.98857]
[1738335513590,2.98815,3346.6,3346.1,2.98852]
[1738335513906,2.98794,3346.8,3346.1,0.8048]
[1738335514221,1.195852,3347.2,3346.4,0.0075]
[1738335514383,3.77985,3347.6,3346.9,0.0075]
[1738335514583,1.195731,3347.2,3347.1,2.9876]
[1738335514993,0.59459152,3347.6,3347.1,2.9876]
[1738335514994,3.58180152,3347.6,3347.1,2.9876]
[1738335515320,5.51354267,3347.6,3347.1,2.9876]
[1738335515869,1.93174115,3347.6,3347.1,2.9876]
[1738335516721,3.7926,3347.9,3347.3,0.0075]
[1738335516921,3.0,3347.9,3347.4,2.98738]
[1738335517230,1.19551,3347.8,3347.5,2.98723]
[1738335517529,2.98654,3348.4,3347.7,2.98712]
[1738335517691,1.195397,3348.1,3347.7,2.98707]
[1738335517895,1.195397,3348.1,3347.8,2.98699]
[1738335518079,3.31380021,3348.3,3347.8,0.8298]
[1738335518285,0.70584402,3348.2,3347.8,0.8298]
[1738335518626,1.90120602,3348.2,3347.8,0.8298]
[1738335519527,1.90120602,3348.2,3347.8,3.81675]
[1738335519827,0.31380021,3348.3,3347.8,3.81675]
[1738335519828,3.30043021,3348.3,3347.8,0.8298]
[1738335520014,4.49577721,3348.3,3347.8,0.8298]
[1738335520888,1.50914721,3348.3,3347.8,0.8298]
[1738335521082,3.43624872,3348.2,3347.8,0.8298]
[1738335521829,0.44956872,3348.2,3347.8,0.8298]
[1738335522032,3.74552,3348.0,3347.3,0.7675]
[1738335522197,2.98713,3347.7,3347.0,2.98772]
[1738335522399,2.98729,3347.6,3347.0,0.7675]
[1738335522615,2.98732,3347.5,3347.0,0.7675]
[1738335522910,3.36548701,3347.7,3347.1,2.98764]
[1738335523115,2.98718,3347.7,3347.1,2.98764]
[1738335523685,3.0,3347.8,3347.3,2.98746]
[1738335524092,2.98678,3348.1,3347.1,0.0075]
[1738335524295,4.181997,3348.3,3347.7,3.79715]
[1738335524486,3.4830297,3348.2,3347.7,3.79715]
[1738335525216,1.195347,3348.3,3347.7,3.79715]
[1738335525382,4.181957,3348.3,3347.7,3.79715]
[1738335525986,1.195347,3348.3,3347.7,3.79715]
[1738335526383,4.182007,3348.3,3347.7,3.79715]
[1738335527424,1.195347,3348.3,3347.9,2.98692]
[1738335527732,1.195347,3348.3,3347.9,0.0075]
[1738335528026,1.195347,3348.3,3348.1,2.98671]
[1738335528226,1.195347,3348.3,3347.9,3.673578]
[1738335528534,2.98649,3348.5,3347.9,2.98691]
[1738335528772,2.98649,3348.5,3348.0,0.0075]
[1738335529229,2.98675,3348.2,3347.7,0.8026]
[1738335529531,2.98683,3348.1,3347.7,0.8026]
[1738335529711,2.98683,3348.1,3347.5,2.98725]
[1738335530488,2.98699,3347.9,3347.4,0.771]
[1738335530948,0.7648,3347.8,3347.2,2.995]
[1738335531107,2.98701,3347.9,3347.3,2.98741]
[1738335531511,2.98662,3348.3,3347.8,0.0075]
[1738335531816,2.98662,3348.3,3347.8,2.99449]
[1738335532211,2.98662,3348.3,3347.8,0.0075]
[1738335533590,2.98669,3348.2,3347.8,0.0075]
[1738335534026,3.02402659,3348.2,3347.8,0.0075]
[1738335534335,2.98669,3348.2,3347.8,0.0075]
[1738335534805,3.02412658,3348.1,3347.8,0.0075]
[1738335535236,0.03733658,3348.1,3347.8,0.0075]
[1738335535591,2.98702,3347.9,3347.4,0.8326]
[1738335536539,0.7597,3348.0,3347.1,0.8124]
[1738335536692,2.98722,3347.6,3347.1,0.8124]
[1738335537046,2.98746,3347.4,3346.8,0.8124]
[1738335537189,0.03734595,3347.3,3346.8,0.8124]
[1738335537395,2.98749,3347.3,3346.9,0.0075]
[1738335537723,2.98749,3347.3,3346.8,0.8124]
[1738335537923,2.98774,3347.1,3346.8,0.8124]
[1738335538125,2.98775,3347.0,3346.5,2.98816]
[1738335538330,2.98774,3347.1,3346.6,0.0075]
[1738335538639,2.98749,3347.3,3346.6,2.99555]
[1738335538640,2.98758,3347.2,3346.6,2.99555]
[1738335538821,0.678257,3347.2,3346.6,0.0075]
[1738335539020,2.98773,3347.1,3346.6,0.0075]
[1738335539343,2.98773,3347.1,3346.6,2.99558]
[1738335540434,2.98749,3347.3,3346.6,2.99558]
[1738335540634,2.98732,3347.5,3346.9,2.99533]
[1738335540939,2.98739,3347.4,3346.9,0.0075]
[1738335541443,3.02484661,3347.3,3346.8,0.0075]
[1738335541603,3.02484661,3347.3,3346.6,2.98806]
[1738335541604,2.98767,3347.1,3346.6,2.98806]
[1738335541797,2.98767,3347.1,3346.5,3.74278]
[1738335541996,3.74327,3347.1,3346.6,0.0075]
[1738335542723,4.2914957,3347.1,3346.6,0.0075]
[1738335542897,3.74327,3347.1,3346.6,2.99555]
[1738335543096,0.8229,3347.7,3347.3,2.98747]
[1738335543324,0.8229,3348.1,3347.4,2.99481]
[1738335543597,0.380953,3348.0,3347.4,0.0075]
[1738335543834,2.98695,3347.9,3347.4,0.0075]
[1738335544968,2.98677,3348.1,3347.5,2.98723]
[1738335545142,2.98695,3347.9,3347.4,0.0075]
[1738335545748,0.7576,3348.3,3347.5,2.98729]
[1738335545956,3.13594559,3348.8,3347.5,2.98729]
[1738335545957,1.99566,3348.6,3348.0,2.98685]
[1738335546258,4.98204,3348.6,3348.0,2.98685]
[1738335546458,1.19526,3348.6,3348.0,2.9868]
[1738335546779,1.19526,3348.6,3348.1,2.98668]
[1738335546978,4.18163,3348.6,3348.0,2.9868]
[1738335547141,4.18163,3348.6,3348.1,2.98673]
[1738335547342,1.19526,3348.6,3348.2,2.99412]
[1738335547541,3.0,3348.7,3348.2,2.99412]
[1738335547744,1.195191,3348.7,3348.4,2.98649]
[1738335548077,2.98609,3348.9,3348.4,2.98649]
[1738335548256,1.195148,3348.9,3348.4,2.98649]
[1738335548458,1.195148,3348.9,3348.5,3.7487]
[1738335548800,3.0,3349.0,3348.5,3.7487]
[1738335548952,5.98599,3349.0,3348.5,3.7487]
[1738335549145,5.98599,3349.0,3348.5,0.7623]
[1738335549383,2.98599,3349.0,3348.5,0.7623]
[1738335549885,3.02339875,3348.9,3348.5,0.7623]
[1738335550111,4.12701752,3348.9,3348.5,0.7623]
[1738335550297,1.10361877,3348.9,3348.5,0.7623]
[1738335550598,4.08966877,3348.9,3348.5,0.7623]
[1738335550950,1.10361877,3348.9,3348.5,0.7623]
[1738335551155,2.98598,3349.0,3348.5,0.7623]
[1738335551493,4.195099,3349.1,3348.6,0.0075]
[1738335551676,2.98563,3349.4,3348.6,0.0075]
[1738335551881,2.98589,3349.1,3348.6,0.0075]
[1738335553200,1.195042,3349.2,3348.6,0.0075]
[1738335553502,2.98588,3349.1,3348.6,0.0075]
[1738335554502,2.98596,3349.0,3348.6,0.0075]
[1738335555000,2.98588,3349.1,3348.6,0.0075]
[1738335555294,2.98597,3349.0,3348.6,0.0075]
[1738335555998,2.98615,3348.8,3348.2,2.98664]
[1738335556300,2.98619,3348.8,3348.4,0.0075]
[1738335557760,2.98619,3348.8,3348.0,2.98685]
[1738335557761,0.03732866,3348.7,3348.0,2.98685]
[1738335557956,0.03732866,3348.7,3348.0,3.75695]
[1738335557957,2.98637,3348.6,3348.0,3.75695]
[1738335558182,2.98637,3348.6,3348.1,0.0075]
[1738335558390,0.40950847,3348.7,3348.1,0.0075]
[1738335558590,2.98641,3348.5,3348.1,0.0075]
[1738335558997,2.98596,3349.0,3348.3,0.0075]
[1738335559310,2.98565,3349.4,3348.9,0.8246]
[1738335559503,3.81025,3349.4,3348.9,0.8246]
[1738335559898,2.98544,3349.6,3349.0,2.98594]
[1738335560129,5.97095,3349.6,3349.0,2.98594]
[1738335560337,2.98544,3349.6,3348.9,0.8246]
[1738335560502,2.98566,3349.4,3348.9,0.8246]
[1738335561009,2.98574,3349.3,3348.9,0.8246]
[1738335561337,3.02306399,3349.3,3348.9,0.8246]
[1738335561638,0.6008724,3349.2,3348.9,0.8246]
[1738335561843,0.6008724,3349.2,3348.6,2.98628]
[1738335561844,3.5867124,3349.2,3348.7,0.0075]
[1738335562671,2.98566,3349.4,3348.7,0.0075]
[1738335562824,2.9857,3349.3,3348.7,2.99368]
[1738335564436,2.98552,3349.5,3348.9,2.99355]
[1738335564602,2.98536,3349.7,3349.0,3.76149]
[1738335564803,2.98548,3349.6,3349.0,3.76149]
[1738335565199,5.98528,3349.8,3349.2,2.98576]
[1738335565394,0.8146,3350.1,3349.1,0.0075]
[1738335565595,0.8146,3350.1,3349.0,1.152499]
[1738335565596,2.98483,3350.3,3349.9,0.0075]
[1738335566517,2.98465,3350.5,3349.9,0.0075]
[1738335566853,2.98485,3350.3,3349.7,2.99278]
[1738335567252,2.98485,3350.3,3349.9,0.0075]
[1738335568341,2.98485,3350.3,3349.8,0.0075]
[1738335568541,2.98484,3350.3,3349.8,0.0075]
[1738335568843,2.9849,3350.2,3349.8,0.0075]
[1738335569020,2.9849,3350.2,3349.7,0.0075]
[1738335570339,2.9849,3350.2,3349.5,0.7756]
[1738335570340,2.98522,3349.9,3349.5,0.7756]
[1738335570652,3.581864,3350.2,3349.6,2.9929]
[1738335570859,2.98499,3350.1,3349.6,2.9929]
[1738335571214,2.98509,3350.0,3349.6,0.0075]
[1738335571625,2.98499,3350.1,3349.6,0.0075]
[1738335571830,2.98489,3350.2,3349.6,0.0075]
[1738335572038,2.98516,3349.9,3349.6,0.0075]
[1738335572238,2.98513,3350.0,3349.6,0.0075]
[1738335572455,2.98517,3349.9,3349.6,0.0075]
[1738335573157,2.98517,3349.9,3349.5,0.7756]
[1738335573158,2.98543,3349.6,3349.5,0.7756]
[1738335573459,2.98543,3349.6,3349.0,0.7741]
[1738335573652,0.8153,3350.0,3349.0,0.7741]
[1738335573653,2.98532,3349.8,3349.2,2.98575]
[1738335573859,2.98532,3349.8,3349.2,0.0075]
[1738335574044,2.98518,3349.9,3349.4,0.0075]
[1738335574251,2.98518,3349.9,3349.6,0.0075]
[1738335575561,2.9853,3349.8,3349.6,0.0075]
[1738335576362,2.98516,3349.9,3349.6,0.0075]
[1738335577662,2.98534,3349.7,3349.6,0.0075]
[1738335577961,2.98516,3349.9,3349.6,0.0075]
[1738335577962,5.9704,3349.9,3349.6,0.0075]
[1738335578162,2.98525,3349.8,3349.6,0.0075]
[1738335579023,2.98535,3349.7,3349.2,3.81117]
[1738335579423,2.98516,3349.9,3349.3,0.0075]
[1738335580268,2.98502,3350.1,3349.6,0.786]
[1738335580475,2.98491,3350.2,3349.7,0.0075]
[1738335581919,2.98482,3350.3,3349.7,2.99283]
[1738335582275,2.98511,3350.0,3349.7,0.0075]
[1738335582819,2.98542,3349.7,3349.3,0.7799]
[1738335583714,2.98542,3349.7,3349.4,0.0075]
[1738335584575,2.98499,3350.1,3349.6,0.0075]
[1738335584773,2.98499,3350.1,3349.7,0.8184]
[1738335585285,2.98484,3350.3,3349.8,0.0075]
[1738335585813,2.98484,3350.3,3349.8,2.99274]
[1738335586912,2.98484,3350.3,3349.8,3.672402]
[1738335587110,6.11413376,3351.4,3350.5,0.0075]
[1738335587283,2.98419,3351.0,3350.6,0.0075]
[1738335587483,2.98423,3351.0,3350.6,0.0075]
[1738335588022,2.98404,3351.2,3350.5,2.99211]
[1738335588334,2.98384,3351.4,3351.0,0.0075]
[1738335588679,3.0,3351.5,3351.1,0.7521]
[1738335588882,2.98339,3351.9,3351.4,0.0075]
[1738335589379,3.29488913,3352.1,3351.5,0.0075]
[1738335589580,3.74938553,3352.1,3351.7,0.0075]
[1738335589785,2.98337,3352.0,3351.7,0.0075]
[1738335590426,2.98347,3351.8,3351.3,0.7521]
[1738335590580,2.98347,3351.8,3351.4,0.0075]
[1738335590787,0.7904,3352.4,3351.4,0.0075]
[1738335590987,3.1563121,3352.5,3351.8,0.0075]
[1738335591224,2.98299,3352.4,3352.0,0.8213]
[1738335591926,2.98309,3352.3,3352.0,0.8213]
[1738335593100,2.9833,3352.0,3351.6,0.8002]
[1738335593297,0.03729282,3352.1,3351.1,2.98408]
[1738335593502,2.98362,3351.7,3351.2,0.8002]
[1738335593912,2.98362,3351.7,3351.3,0.0075]
[1738335594100,2.9837,3351.6,3351.3,0.0075]
[1738335594481,2.98362,3351.7,3351.3,0.0075]
[1738335594751,0.596702,3351.6,3351.3,0.0075]
[1738335594883,3.580362,3351.6,3351.3,0.0075]
[1738335595830,0.596702,3351.6,3351.3,0.0075]
[1738335596004,2.98341,3351.9,3351.3,0.0075]
[1738335596299,2.98357,3351.7,3351.3,0.0075]
[1738335596803,2.98366,3351.6,3351.3,0.0075]
[1738335596999,2.98357,3351.7,3351.3,0.0075]
[1738335598136,0.8112,3352.4,3351.3,0.0075]
[1738335598284,0.66821748,3352.3,3351.9,2.98335]
[1738335598491,0.66821748,3352.3,3351.5,0.0075]
[1738335598492,2.98329,3352.0,3351.5,2.98372]
[1738335598822,2.98312,3352.2,3351.7,0.0075]
[1738335599232,0.03729184,3352.2,3351.4,0.7645]
[1738335599382,2.88816482,3352.5,3351.5,2.98373]
[1738335599726,0.36993648,3352.4,3351.6,0.0075]
[1738335599908,2.98328,3352.1,3351.6,0.0075]
[1738335600281,2.98302,3352.3,3351.8,0.0075]
[1738335600495,2.98314,3352.2,3351.8,0.0075]
[1738335600732,3.63782495,3352.2,3351.7,0.0075]
[1738335601340,0.1734621,3352.5,3352.2,0.8081]
[1738335601638,0.1734621,3352.5,3352.2,3.79114]
[1738335602218,0.1734621,3352.5,3352.2,0.8081]
[1738335602442,0.1734621,3352.5,3352.2,3.79118]
[1738335602939,0.1734621,3352.5,3352.4,2.99043]
[1738335603346,0.1734621,3352.5,3352.4,0.0075]
[1738335603516,0.1734621,3352.5,3352.4,2.99043]
[1738335605848,0.1734621,3352.5,3352.4,0.0075]
[1738335606663,0.1734621,3352.5,3352.4,2.99043]
[1738335606858,0.1734621,3352.5,3352.4,0.0075]
[1738335607142,0.1734621,3352.5,3352.4,3.81923]
[1738335607443,0.1734621,3352.5,3352.4,4.69393186]
[1738335607652,0.1734621,3352.5,3352.4,7.70143186]
[1738335608851,0.1734621,3352.5,3352.4,8.25143186]
[1738335609415,0.1734621,3352.5,3352.4,8.84022345]
[1738335609720,2.1e-06,3352.5,3352.4,8.84022345]
[1738335609946,2.98093,3354.7,3354.2,0.0075]
[1738335610115,2.98112,3354.5,3354.2,0.0075]
[1738335610455,0.377453,3354.7,3353.4,2.71470272]
[1738335610456,2.98138,3354.2,3353.5,2.98189]
[1738335610641,2.98116,3354.4,3353.5,0.0075]
[1738335610961,2.98127,3354.3,3353.8,0.0075]
[1738335611333,2.98149,3354.1,3353.5,2.9819]
[1738335611635,2.98149,3354.1,3353.5,29.8846]
[1738335611868,2.98148,3354.1,3353.6,0.0075]
[1738335612264,0.3358613,3354.4,3353.6,0.0075]
[1738335612494,2.98168,3353.9,3353.6,0.0075]
[1738335612663,2.41059313,3354.6,3353.6,0.0075]
[1738335612868,2.9817,3353.8,3353.6,0.0075]
[1738335613090,2.9817,3353.8,3353.5,29.8846]
[1738335613091,2.98187,3353.6,3353.5,29.8846]
[1738335613255,5.98187,3353.6,3353.5,29.8846]
[1738335613656,2.98177,3353.8,3353.5,29.8846]
[1738335614075,2.98139,3354.2,3353.6,0.0075]
[1738335614593,2.98139,3354.2,3353.6,2.98928]
[1738335614799,2.98121,3354.4,3353.8,0.0075]
[1738335615009,0.03726786,3354.3,3353.8,0.0075]
[1738335615296,0.03726789,3354.7,3353.5,32.86652]
[1738335615516,0.03726789,3354.7,3353.6,2.9893]
[1738335615517,2.98125,3354.3,3353.6,2.9893]
[1738335615703,2.98103,3354.6,3354.0,0.0075]
[1738335615862,2.98103,3354.6,3354.1,0.7549]
[1738335616057,2.98083,3354.8,3354.2,0.0075]
[1738335616262,2.98083,3354.8,3354.2,2.98881]
[1738335616690,2.98091,3354.7,3354.2,0.0075]
[1738335617169,2.9808,3354.8,3354.2,0.0075]
[1738335617575,2.98097,3354.7,3354.2,0.0075]
[1738335618186,0.676366,3354.8,3354.2,0.0075]
[1738335618499,3.657226,3354.8,3354.2,0.0075]
[1738335619202,2.9809,3354.7,3354.2,0.0075]
[1738335620122,0.03726335,3354.7,3354.2,0.0075]
[1738335620370,2.98152,3354.0,3353.6,0.7958]
[1738335620738,2.98152,3354.0,3353.7,0.0075]
[1738335620924,3.80663,3354.6,3353.5,29.8846]
[1738335620925,2.98179,3353.7,3353.5,29.8846]
[1738335621124,2.98167,3353.9,3353.5,29.8846]
[1738335621971,2.98135,3354.2,3353.6,0.0075]
[1738335622262,3.657206,3354.8,3354.1,0.0075]
[1738335622462,2.98065,3355.0,3354.1,0.0075]
[1738335622669,2.98082,3354.8,3354.3,0.0075]
[1738335623621,2.98066,3355.0,3354.4,2.98113]
[1738335623852,2.98066,3355.0,3354.4,3.78053]
[1738335624132,2.98073,3354.9,3354.4,0.7994]
[1738335624460,3.278796,3354.9,3354.4,0.7994]
[1738335625178,2.98041,3355.3,3354.7,0.0075]
[1738335625333,2.98041,3355.3,3354.7,2.98838]
[1738335625826,3.64690667,3355.5,3355.0,0.0075]
[1738335626026,0.66666667,3355.5,3355.0,2.98809]
[1738335626236,0.66666667,3355.5,3355.1,2.98052]
[1738335626682,0.66666667,3355.5,3355.2,0.0075]
[1738335627332,4.01154934,3355.5,3355.2,0.0075]
[1738335627874,1.03133934,3355.5,3355.1,0.0075]
[1738335628539,1.03133934,3355.5,3354.8,3.80558]
[1738335628540,2.9805,3355.2,3354.8,0.8248]
[1738335628742,2.98048,3355.2,3354.8,0.8248]
[1738335629077,2.98048,3355.2,3354.9,0.0075]
[1738335629580,2.9803,3355.4,3354.9,0.0075]
[1738335629960,0.66666667,3355.5,3354.9,0.0075]
[1738335630268,0.66666667,3355.5,3354.9,2.98069]
[1738335630474,0.66666667,3355.5,3355.2,0.0075]
[1738335630632,0.66666667,3355.5,3355.4,2.98777]
[1738335630978,0.66666667,3355.5,3355.0,2.98059]
[1738335631274,0.66666667,3355.5,3355.3,2.98034]
[1738335631427,0.66666667,3355.5,3355.2,0.0075]
[1738335631635,3.64684667,3355.5,3355.2,0.0075]
[1738335632024,0.66666667,3355.5,3355.0,0.0075]
[1738335632281,0.66666667,3355.5,3355.0,2.98061]
[1738335632569,0.66666667,3355.5,3355.1,2.988]
[1738335633574,0.66666667,3355.5,3355.0,2.98811]
[1738335633776,1.03135034,3355.5,3355.0,0.0075]
[1738335633978,0.66666667,3355.5,3354.9,2.9807]
[1738335634128,0.66666667,3355.5,3355.1,0.0075]
[1738335634577,2.98027,3355.4,3355.1,0.0075]
[1738335634780,3.64297567,3355.4,3354.9,0.0075]
[1738335635577,3.64297567,3355.4,3354.9,2.9882]
[1738335635783,0.66666667,3355.5,3355.2,0.0075]
[1738335635984,0.66666667,3355.5,3355.2,2.98786]
[1738335636199,0.66666667,3355.5,3355.2,0.0075]
[1738335636416,0.66666667,3355.5,3355.4,0.0075]
[1738335636585,0.66666667,3355.5,3355.4,3.80387]
[1738335637293,0.66666667,3355.5,3355.4,4.489787]
[1738335637534,0.66666667,3355.5,3355.4,8.039787]
[1738335637877,6.67e-06,3355.5,3355.4,8.139787]
[1738335638104,6.67e-06,3355.5,3355.4,11.62139505]
[1738335639226,2.1e-06,3355.9,3355.8,3.77841]
[1738335639408,2.1e-06,3355.9,3355.8,10.81001805]
[1738335639847,2.1e-06,3355.9,3355.8,10.82501805]
[1738335641454,2.97817,3357.8,3357.2,2.97866]
[1738335641753,0.297817,3357.7,3357.2,0.0075]
[1738335641953,2.97798,3358.0,3357.5,0.0075]
[1738335642256,3.77427,3358.1,3357.5,2.98589]
[1738335642455,3.77427,3358.1,3357.4,2.97849]
[1738335642456,2.97797,3358.0,3357.4,2.97849]
[1738335642755,3.77427,3358.1,3357.6,0.0075]
[1738335642913,2.97779,3358.2,3357.7,0.0075]
[1738335643112,0.595533,3358.2,3357.7,2.98571]
[1738335643310,3.80654,3358.5,3357.9,0.0075]
[1738335643528,2.97764,3358.4,3358.0,0.8125]
[1738335643924,2.9777,3358.3,3357.7,3.79072]
[1738335644266,2.97811,3357.9,3357.2,2.97864]